Workbook

Sheet MATRIZ DE INDICADORES
D2: MACROPROCESO ESTRATÉGICO | S2: CÓDIGO: ESGr027
D3: PROCESO GESTIÓN SISTEMAS INTEGRADOS - CALIDAD | S3: VERSIÓN: 8
D4: MATRIZ DE MEDICIÓN Y SEGUIMIENTO A LOS PROCESOS DE GESTIÓN | S4: VIGENCIA: 2023-07-28
S5: PÁGINA: 1 de 5
Q7: FECHA DE ACTUALIZACIÓN: | S7: AÑO | T7: MES | U7: DÍA
S8: 2024 | T8: 6 | U8: 12
B10: ALINEACIÓN DE LOS INDICADORES CON LOS DOCUMENTOS ESTRATÉGICOS Y LOS OBJETIVOS DE CALIDAD
B12: PROCESO GESTIÓN | C12: FRENTES DEL PLAN ESTRATÉGICO | D12: LINEAMIENTOS DE LA POLÍTICA DE CALIDAD | E12: OBJETIVOS DE CALIDAD | F12: OBJETIVO GENERAL DEL PROCESO | G12: OBJETIVOS ESPECÍFICOS | H12: NOMBRE INDICADOR | I12: FÓRMULA | J12: TIPO DE INDICADOR | K12: SEGUIMIENTO MEDICIÓN | L12: META | M12: ACTIVIDAD | N12: RESPONSABLE DE LA ACTIVIDAD | O12: ¿QUÉ RECURSOS SE REQUIEREN? | P12: FECHA EJECUCIÓN DE ACTIVIDADES | Q12: EVIDENCIA | R12: ¿CUÁNDO FINALIZARÁ? | S12: RESULTADO | T12: NIVEL OBTENIDO | U12: ACCESO
B13: Bienestar Universitario | C13: Frente Estratégico VI: Organización Universitaria Digital | D13: Enfocándose en el bienestar de la comunidad universitaria como factor constitutivo de la vida y la libertad y la consolidación de una organización universitaria inteligente con alma y corazón. | E13: Mejorar continuamente el desempeño de los procesos a través de la implementación de buenas prácticas institucionales y de la aplicación de los mecanismos dispuestos por la Universidad de Cundinamarca, para la constitución de una organización universitaria inteligente con alma y corazón. | F13: Planear, promover y ejecutar programas que busquen el mejoramiento de la calidad de vida de la comunidad universitaria, contribuyendo al desarrollo humano y a la formación integral, a través de actividades deportivas, culturales, recreativas, de promoción y prevención, así como estrategias que busquen fortalecer la permanencia de los estudiantes que hacen parte de la comunidad. | G13: Aumentar la participación en los grupos culturales y deportivos por cada semestre del 2024 al promover la importancia de las actividades | H13: Aumento de la participación en los grupos culturales y deportivos | I13: (# de participantes en el semestre actual - # de participantes en el semestre anterior) *100 / # de participantes en el semestre anterior | J13: Eficacia | K13: Semestral | L13: 0.06 | M13: Gestionar capacidad instalada (recurso humano) para la ejecución de las actividades | N13: Dirección de Bienestar Universitario | O13: Financiero | P13: 2024-01-01 | Q13: Proyección presupuestal - Contratos | R13: 2024-12-31 | S13: 0.062 | T13: EXCELENTE | U13: MBU-7
M14: Contratar a los orientadores | N14: Dirección de Bienestar Universitario | O14: Recurso Humano, Información documentada | P14: enero/julio 2024 | Q14: Contratos
M15: Divulgar convocatorias por canales de comunicación | N15: Dirección de Bienestar Universitario - Comunicaciones | O15: Página, micrositio, correo electrónico, redes sociales | P15: 2024-02-01 | Q15: Piezas gráficas - Correos electrónicos
M16: Habilitar los canales de Inscripción participantes | N16: Dirección de Bienestar Universitario | O16: Encuesta digital | P16: febrero / agosto 2024 | Q16: Base de datos alimentada de Forms
M17: Llevar a cabo los encuentros formativos | N17: Dirección de Bienestar Universitario - Líderes de cultura y deporte - Orientadores culturales y deportivos -Comunidad Universitaria | O17: Recurso Humanos - Instalaciones físicas de la Universidad | P17: febrero - noviembre 2024 | Q17: Listas de Asistencias - Informes de Gestión
M18: Evaluar mediante el indicador establecido | N18: Dirección de Bienestar Universitario | O18: Recurso Humano, Información documentada | P18: junio / diciembre 2024 | Q18: Reporte del indicador - Ficha técnica
C19: Frente Estratégico III: Cultura translocal transmoderna | D19: Se legitima como una organización social del conocimiento y el aprendizaje que se compromete con el pensamiento basado en riesgos y el mejoramiento continuo mediante buenas prácticas administrativas y académicas en búsqueda de la acreditación de programas y la acreditación institucional, enfocándose en el bienestar de la comunidad universitaria como factor constitutivo de la vida y la libertad y la consolidación de una organización universitaria inteligente con alma y corazón. | E19: Lograr la acreditación de programas y la acreditación institucional de acuerdo a la planificación de las metas institucionales resultantes de los ejercicios de autoevaluación y acreditación | G19: Realizar el acompañamiento interdisciplinar a los participantes de ASCUN deportivo durante el 2024 para fomentar la calidad de vida | H19: Acompañamiento interdisciplinar (Participantes ASCUN deportivos) | I19: (# de personas que recibieron acompañamiento / # total de personas que participan en ASCUN deportivo) *100 | J19: Eficacia | K19: Semestral | L19: 0.7 | M19: Programar acompañamientos de acuerdo al número de inscritos en cada modalidad deportiva | N19: Dirección de Bienestar Universitario | O19: Recurso Humano - Comunidad Universitaria inscrita | P19: febrero / agosto 2024 | Q19: Cronograma Bienestar Universitario | R19: 2024-12-31 | S19: 0.81 | T19: EXCELENTE | U19: MBU-8
M20: Registrar los acompañamientos realizados a los participantes ASCUN por los profesionales de Bienestar Saludable | N20: Dirección de Bienestar Universitario | O20: Recurso Humano, Instalaciones físicas, insumos para primeros auxilios y actividades de bienestar físico y mental (medición) | P20: febrero - noviembre 2024 | Q20: Registro MBUr108
M21: Evaluar mediante el indicador establecido | N21: Dirección de Bienestar Universitario | O21: Recurso Humano, Información documentada | P21: junio / diciembre 2024 | Q21: Reporte del indicador - Ficha técnica
C22: Frente Estratégico IV: Bienestar universitario constitutivo de la vida y la libertad | D22: Se legitima como una organización social del conocimiento y el aprendizaje que se compromete con el pensamiento basado en riesgos y el mejoramiento continuo mediante buenas prácticas administrativas y académicas en búsqueda de la acreditación de programas y la acreditación institucional | E22: Propiciar el bienestar de la comunidad universitaria como factor constitutivo de la vida y la libertad | G22: Lograr incrementar la participación de la comunidad Universitaria para el 2024 con diferentes estrategias de promoción | H22: Participación de la Comunidad Universitaria | I22: # de personas de la comunidad universitaria (estudiantes, docentes y administrativos) que participan en las actividades desarrolladas por Bienestar Universitario * 100 / Total de personas de la comunidad universitaria | J22: Acreditación | K22: Semestral | L22: 0.7 | M22: Planear las estrategias con las cuales se esperan incrementar la participacipon de la Comunidad Universitaria | N22: Equipo de trabajo-Dirección de Bienestar Universitario | O22: Recurso Humano, Información documentada | P22: 2023 | Q22: Cronograma | R22: 2024-12-31 | S22: 0.84 | T22: EXCELENTE | U22: MBU-9
M23: Definir roles a cada profesional y actividades a realizar en el año | N23: Dirección de Bienestar Universitario | O23: Recurso humano, Bases de datos de identificación de necesidades | P23: II Semestre 2023 | Q23: Cronograma con responsables
M24: Socializar y articular las estrategias planteadas según aplique con externos | N24: Dirección de Bienestar Universitario, Externos | O24: Recursos humanos, instalaciones físicas, equipos ofimáticos | P24: 2024 | Q24: Informes de gestión
M25: Divulgar convocatorias por medio de canales de comunicación | N25: Dirección de Bienestar Universitario - Comunicaciones | O25: Página, micrositio, correo electrónico, redes sociales | P25: 2024 | Q25: Piezas gráficas - Correos electrónicos
M26: Ejecutar las actividades definidas | N26: Dirección de Bienestar Universitario - Comunidad Universitaria | O26: Recurso Humanos - Instalaciones físicas de la Universidad | P26: febrero - noviembre 2024 | Q26: Listas de Asistencias - Informes de Gestión
M27: Evaluar mediante el indicador establecido | N27: Dirección de Bienestar Universitario | O27: Recurso Humano, Información documentada | P27: junio / diciembre 2024 | Q27: Reporte del indicador - Ficha técnica
B43: Diagonal 18 No. 20-29 Fusagasugá – Cundinamarca Teléfono (601) 8281483 Línea Gratuita 018000180414 www.ucundinamarca.edu.co E-mail: info@ucundinamarca.edu.co NIT: 890.680.062-2
B44: Documento controlado por el Sistema de Gestión de la Calidad Asegúrese que corresponde a la última versión consultando el Portal Institucional
C57: LINEAMIENTOS DE LA POLÍTICA DE CALIDAD | D57: OBJETIVOS DE CALIDAD | E57: ALINEACIÓN DE LOS INDICADORES CON LOS DOCUMENTOS ESTRATÉGICOS Y LOS OBJETIVOS DE CALIDAD
C58: LINEAMIENTOS DE LA POLÍTICA DE SEGURIDAD Y SALUD EN EL TRABAJO | D58: OBJETIVOS DE SEGURIDAD Y SALUD EN EL TRABAJO | E58: ALINEACIÓN DE LOS INDICADORES CON LOS DOCUMENTOS ESTRATÉGICOS Y LOS OBJETIVOS DE SEGURIDAD Y SALUD EN EL TRABAJO
C59: LINEAMIENTOS DE LA POLÍTICA DE AMBIENTAL | D59: OBJETIVOS DE AMBIENTAL | E59: ALINEACIÓN DE LOS INDICADORES CON LOS DOCUMENTOS ESTRATÉGICOS Y LOS OBJETIVOS DE AMBIENTAL
C60: LINEAMIENTOS DE LA POLÍTICA DE SEGURIDAD DE LA INFORMACIÓN | D60: OBJETIVOS DE SEGURIDAD DE LA INFORMACIÓN | E60: ALINEACIÓN DE LOS INDICADORES CON LOS DOCUMENTOS ESTRATÉGICOS Y LOS OBJETIVOS DE SEGURIDAD DE LA INFORMACIÓN
C61: LINEAMIENTOS DE LA POLÍTICA DE SEGURIDAD DE ANTISOBORNO | D61: OBJETIVOS DE SEGURIDAD DE ANTISOBORNO | E61: ALINEACIÓN DE LOS INDICADORES CON LOS DOCUMENTOS ESTRATÉGICOS Y LOS OBJETIVOS DE SEGURIDAD DE ANTISOBORNO
C62: LINEAMIENTOS DE LA POLÍTICA DE LA CONCILIACIÓN DE LA VIDA PERSONAL, FAMILIAR Y LABORAL | D62: OBJETIVOS DE LA CONCILIACIÓN DE LA VIDA PERSONAL, FAMILIAR Y LABORAL | E62: ALINEACIÓN DE LOS INDICADORES CON LOS DOCUMENTOS ESTRATÉGICOS Y LOS OBJETIVOS DE LA CONCILIACIÓN DE LA VIDA PERSONAL, FAMILIAR Y LABORAL

Sheet ----1 (hidden)
B2: REGRESAR
E5: MACROPROCESO ESTRATÉGICO | M5: CÓDIGO: ESGr027
E6: PROCESO GESTIÓN SISTEMAS INTEGRADOS | M6: VERSIÓN: 7
E7: MATRIZ DE MEDICIÓN Y SEGUIMIENTO A LOS PROCESOS DE GESTIÓN | M7: VIGENCIA: 2020-03-31
M8: PÁGINA: 1 de 1
C10: FICHA DE INDICADOR
C12: MACROPROCESO | I12: NOMBRE DEL INDICADOR
C13: PROCESO GESTIÓN
C14: RESPONSABLE DE MEDICIÓN
C16: 1. COMPORTAMIENTO DE INDICADOR
C17: CLASIFICACIÓN DE LA MEDICIÓN | E17: 2 | H17: TIPO DE INDICADOR | L17: META ANUAL
C18: FORMULA | L18: UNIDAD DE MEDIDA
C20: TENDENCIA | H20: NIVEL DE SEGREGACIÓN * | L20: ESCALA
L21: Deficiente | M21: Aceptable | N21: Bueno | O21: Excelente
C23: ORIGEN DE DATOS | H23: FRECUENCIA DE LA MEDICIÓN | J23: TRIMESTRAL | L23: FRECUENCIA DE RESULTADO | N23: ANUAL
C26: RESULTADOS
J27: ANÁLISIS DE DATOS Los datos indican un crecimiento en los acompañamientos entre el primer trimestre y el segundo trimestre de mas del 100%, por la contratación del personal de la oficina En el tercer trimestre se muestra un decrecimiento con respecto al periodo anterior por las vacaciones a mitad de año, las personas se reintegraron entre julio y agosto.
J34: ACCIÓN FORMULADA Reformular la meta para el próximo año dependiendo de los recursos asignados.
J41: RESPONSABLE
J42: =E14 -> 0
C45: PERIODO DE EVALUACIÓN
C46: MES | D46: =IF(J23="MENSUAL","ENERO",IF(J23="TRIMESTRAL","MARZO",IF(J23="SEMESTRAL","JUNIO",IF(J23="ANUAL",YEAR(TODAY()),"")))) -> MARZO | E46: =IF(J23="MENSUAL","FEBRERO",IF(J23="TRIMESTRAL","JUNIO",IF(J23="SEMESTRAL","DICIEMBRE",""))) -> JUNIO | F46: =IF(J23="MENSUAL","MARZO",IF(J23="TRIMESTRAL","SEPTIEMBRE","")) -> SEPTIEMBRE | G46: =IF(J23="MENSUAL","ABRIL",IF(J23="TRIMESTRAL","DICIEMBRE","")) -> DICIEMBRE | H46: =IF(J23="MENSUAL","MAYO","") ->  | I46: =IF(J23="MENSUAL","JUNIO","") ->  | J46: =IF(J23="MENSUAL","JULIO","") ->  | K46: =IF(J23="MENSUAL","AGOSTO","") ->  | L46: =IF(J23="MENSUAL","SEPTIEMBRE","") ->  | M46: =IF(J23="MENSUAL","OCTUBRE","") ->  | N46: =IF(J23="MENSUAL","NOVIEMBRE","") ->  | O46: =IF(J23="MENSUAL","DICIEMBRE","") -> 
C47: =G18 -> 0
C48: =G19 -> 0
C49: VALOR | D49: =IFERROR(IF($E$17=1,D47/D48,IF($E$17=2,D47,"")),"") -> 0 | E49: =IFERROR(IF($E$17=1,E47/E48,IF($E$17=2,E47,"")),"") -> 0 | F49: 0 | G49: 0 | H49: 0 | I49: 0 | J49: 0 | K49: 0 | L49: 0 | M49: 0 | N49: 0 | O49: 0
C50: META PONDERADA | D50: =IF(AND(N23="ANUAL",J23="MENSUAL"),N17/12,IF(AND(N23="ANUAL",J23="TRIMESTRAL"),N17/4,IF(AND(N23="ANUAL",J23="SEMESTRAL"),N17/2,IF(AND(N23="ANUAL",J23="ANUAL"),N17,IF(AND(N23="SEMESTRAL",J23="MENSUAL"),N17/6,IF(AND(N23="SEMESTRAL",J23="TRIMESTRAL"),N17/2,IF(AND(N23="SEMESTRAL",J23="SEMESTRAL"),N17,IF(AND(N23="SEMESTRAL",J23="ANUAL"),"REVISAR FRECUENCIAS",IF(AND(N23="TRIMESTRAL",J23="MENSUAL"),N17/3,IF(AND(N23="TRIMESTRAL",J23="TRIMESTRAL"),N17,IF(AND(N23="TRIMESTRAL",J23="SEMESTRAL"),"REVISAR FRECUENCIAS",IF(AND(N23="TRIMESTRAL",J23="ANUAL"),"REVISAR FRECUENCIAS",IF(AND(N23="MENSUAL",J23="MENSUAL"),N17,IF(AND(N23="MENSUAL",J23="TRIMESTRAL"),"REVISAR FRECUENCIAS",IF(AND(N23="MENSUAL",J23="SEMESTRAL"),"REVISAR FRECUENCIAS",IF(AND(N23="MENSUAL",J23="ANUAL"),"REVISAR FRECUENCIAS","")))))))))))))))) -> 0 | E50: =IF(AND(N23="ANUAL",J23="MENSUAL"),N17/12+D50,IF(AND(N23="ANUAL",J23="TRIMESTRAL"),N17/4+D50,IF(AND(N23="ANUAL",J23="SEMESTRAL"),N17/2+D50,IF(AND(N23="SEMESTRAL",J23="MENSUAL"),N17/6+D50,IF(AND(N23="SEMESTRAL",J23="TRIMESTRAL"),N17/2+D50,IF(AND(N23="SEMESTRAL",J23="SEMESTRAL"),N17,IF(AND(N23="TRIMESTRAL",J23="MENSUAL"),N17/3+D50,IF(AND(N23="TRIMESTRAL",J23="TRIMESTRAL"),N17,IF(AND(N23="MENSUAL",J23="MENSUAL"),N17,""))))))))) -> 0 | F50: =IF(AND(N23="ANUAL",J23="MENSUAL"),N17/12+E50,IF(AND(N23="ANUAL",J23="TRIMESTRAL"),N17/4+E50,IF(AND(N23="SEMESTRAL",J23="MENSUAL"),N17/6+E50,IF(AND(N23="SEMESTRAL",J23="TRIMESTRAL"),N17/2,IF(AND(N23="TRIMESTRAL",J23="MENSUAL"),N17/3+E50,IF(AND(N23="TRIMESTRAL",J23="TRIMESTRAL"),N17,IF(AND(N23="MENSUAL",J23="MENSUAL"),N17,""))))))) -> 0 | G50: =IF(AND(N23="ANUAL",J23="MENSUAL"),N17/12+F50,IF(AND(N23="ANUAL",J23="TRIMESTRAL"),N17/4+F50,IF(AND(N23="SEMESTRAL",J23="MENSUAL"),N17/6+F50,IF(AND(N23="SEMESTRAL",J23="TRIMESTRAL"),N17/2+F50,IF(AND(N23="TRIMESTRAL",J23="MENSUAL"),N17/3,IF(AND(N23="TRIMESTRAL",J23="TRIMESTRAL"),N17,IF(AND(N23="MENSUAL",J23="MENSUAL"),N17,""))))))) -> 0 | H50: =IF(AND($N$23="ANUAL",$J$23="MENSUAL"),$N$17/12+G50,IF(AND(N23="SEMESTRAL",J23="MENSUAL"),N17/6+G50,IF(AND(N23="TRIMESTRAL",J23="MENSUAL"),N17/3+G50,IF(AND(N23="MENSUAL",J23="MENSUAL"),N17,"")))) ->  | I50: =IF(AND($N$23="ANUAL",$J$23="MENSUAL"),$N$17/12+H50,IF(AND(N23="SEMESTRAL",J23="MENSUAL"),N17/6+H50,IF(AND(N23="TRIMESTRAL",J23="MENSUAL"),N17/3+H50,IF(AND(N23="MENSUAL",J23="MENSUAL"),N17,"")))) ->  | J50: =IF(AND($N$23="ANUAL",$J$23="MENSUAL"),$N$17/12+I50,IF(AND(N23="SEMESTRAL",J23="MENSUAL"),N17/6,IF(AND(N23="TRIMESTRAL",J23="MENSUAL"),N17/3,IF(AND(N23="MENSUAL",J23="MENSUAL"),N17,"")))) ->  | K50: =IF(AND($N$23="ANUAL",$J$23="MENSUAL"),$N$17/12+J50,IF(AND(N23="SEMESTRAL",J23="MENSUAL"),N17/6+J50,IF(AND(N23="TRIMESTRAL",J23="MENSUAL"),N17/3+J50,IF(AND(N23="MENSUAL",J23="MENSUAL"),N17,"")))) ->  | L50: =IF(AND($N$23="ANUAL",$J$23="MENSUAL"),$N$17/12+K50,IF(AND(N23="SEMESTRAL",J23="MENSUAL"),N17/6+K50,IF(AND(N23="TRIMESTRAL",J23="MENSUAL"),N17/3+K50,IF(AND(N23="MENSUAL",J23="MENSUAL"),N17,"")))) ->  | M50: =IF(AND($N$23="ANUAL",$J$23="MENSUAL"),$N$17/12+L50,IF(AND(N23="SEMESTRAL",J23="MENSUAL"),N17/6+L50,IF(AND(N23="TRIMESTRAL",J23="MENSUAL"),N17/3,IF(AND(N23="MENSUAL",J23="MENSUAL"),N17,"")))) ->  | N50: =IF(AND($N$23="ANUAL",$J$23="MENSUAL"),$N$17/12+M50,IF(AND(N23="SEMESTRAL",J23="MENSUAL"),N17/6+M50,IF(AND(N23="TRIMESTRAL",J23="MENSUAL"),N17/3+M50,IF(AND(N23="MENSUAL",J23="MENSUAL"),N17,"")))) ->  | O50: =IF(AND($N$23="ANUAL",$J$23="MENSUAL"),$N$17/12+N50,IF(AND(N23="SEMESTRAL",J23="MENSUAL"),N17/6+N50,IF(AND(N23="TRIMESTRAL",J23="MENSUAL"),N17/3+N50,IF(AND(N23="MENSUAL",J23="MENSUAL"),N17,"")))) -> 
C52: NIVEL DE SEGREGACIÓN *
C53: UNIDAD SEGREGADA (Ej. Facultad, Programa Académico, Área) | G53: RESULTADO | K53: ANALISIS DE DATOS SEGREGADO
G73: Estratégico | J73: Eficacia
G74: Misional | J74: Eficiencia
G75: Apoyo | J75: Acreditación
G76: Seguimiento, Medición, Análisis y Evaluación | J76: Positiva
G77: Direccionamiento Estratégico | J77: Negativa
G78: Planeación Institucional | J78: Por Unidad Regional
G79: Proyectos Especiales y Relaciones Interinstitucionales | J79: Por Facultad
G80: Sistemas Integrados | J80: Por Programa Académico
G81: Autoevaluación y Acreditación | J81: Por área
G82: Comunicaciones | J82: Por Laboratorio
G83: Formación y Aprendizaje | J83: Otros
G84: Ciencia, Tecnología e Innovación | J84: No Aplica
G85: Interacción Social Universitaria
G86: Bienestar Universitario
G87: Admisiones y Registro
G88: Graduados
G89: Dialogando con el Mundo
G90: Talento Humano
G91: Jurídica
G92: Financiera
G93: Sistemas y Tecnología
G94: Bienes y Servicios
G95: Documental
G96: Apoyo Académico
G97: Control Interno
G98: Control Disciplinario
G99: Servicio de Atención al Ciudadano

Sheet ----2 (hidden)
B2: REGRESAR
E5: MACROPROCESO ESTRATÉGICO | M5: CÓDIGO: ESGr027
E6: PROCESO GESTIÓN SISTEMAS INTEGRADOS | M6: VERSIÓN: 7
E7: MATRIZ DE MEDICIÓN Y SEGUIMIENTO A LOS PROCESOS DE GESTIÓN | M7: VIGENCIA: 2020-03-31
M8: PÁGINA: 1 de 1
C10: FICHA DE INDICADOR
C12: MACROPROCESO | I12: NOMBRE DEL INDICADOR
C13: PROCESO GESTIÓN
C14: RESPONSABLE DE MEDICIÓN
C16: 1. COMPORTAMIENTO DE INDICADOR
C17: CLASIFICACIÓN DE LA MEDICIÓN | E17: 1 | H17: TIPO DE INDICADOR | L17: META ANUAL
C18: FORMULA | E18: NUMERADOR | L18: UNIDAD DE MEDIDA
E19: DENOMINADOR
C20: TENDENCIA | H20: NIVEL DE SEGREGACIÓN * | L20: ESCALA
L21: Deficiente | M21: Aceptable | N21: Bueno | O21: Excelente
C23: ORIGEN DE DATOS NUMERADOR | H23: FRECUENCIA DE LA MEDICIÓN | J23: TRIMESTRAL | L23: FRECUENCIA DE RESULTADO | N23: TRIMESTRAL
C24: ORIGEN DE DATOS DENOMINADOR
C26: RESULTADOS
J27: ANÁLISIS DE DATOS
J34: ACCIÓN FORMULADA
J41: RESPONSABLE
J42: =E14 -> 0
C45: PERIODO DE EVALUACIÓN
C46: MES | D46: =IF(J23="MENSUAL","ENERO",IF(J23="TRIMESTRAL","MARZO",IF(J23="SEMESTRAL","JUNIO",IF(J23="ANUAL",YEAR(TODAY()),"")))) -> MARZO | E46: =IF(J23="MENSUAL","FEBRERO",IF(J23="TRIMESTRAL","JUNIO",IF(J23="SEMESTRAL","DICIEMBRE",""))) -> JUNIO | F46: =IF(J23="MENSUAL","MARZO",IF(J23="TRIMESTRAL","SEPTIEMBRE","")) -> SEPTIEMBRE | G46: =IF(J23="MENSUAL","ABRIL",IF(J23="TRIMESTRAL","DICIEMBRE","")) -> DICIEMBRE | H46: =IF(J23="MENSUAL","MAYO","") ->  | I46: =IF(J23="MENSUAL","JUNIO","") ->  | J46: =IF(J23="MENSUAL","JULIO","") ->  | K46: =IF(J23="MENSUAL","AGOSTO","") ->  | L46: =IF(J23="MENSUAL","SEPTIEMBRE","") ->  | M46: =IF(J23="MENSUAL","OCTUBRE","") ->  | N46: =IF(J23="MENSUAL","NOVIEMBRE","") ->  | O46: =IF(J23="MENSUAL","DICIEMBRE","") -> 
C47: =G18 -> 0
C48: =G19 -> 0
C49: VALOR | D49: =IFERROR(IF($E$17=1,D47/D48,IF($E$17=2,D47,"")),"") ->  | E49: =IFERROR(IF($E$17=1,E47/E48,IF($E$17=2,E47,"")),"") -> 
C50: META PONDERADA | D50: =IF(AND(N23="ANUAL",J23="MENSUAL"),N17/12,IF(AND(N23="ANUAL",J23="TRIMESTRAL"),N17/4,IF(AND(N23="ANUAL",J23="SEMESTRAL"),N17/2,IF(AND(N23="ANUAL",J23="ANUAL"),N17,IF(AND(N23="SEMESTRAL",J23="MENSUAL"),N17/6,IF(AND(N23="SEMESTRAL",J23="TRIMESTRAL"),N17/2,IF(AND(N23="SEMESTRAL",J23="SEMESTRAL"),N17,IF(AND(N23="SEMESTRAL",J23="ANUAL"),"REVISAR FRECUENCIAS",IF(AND(N23="TRIMESTRAL",J23="MENSUAL"),N17/3,IF(AND(N23="TRIMESTRAL",J23="TRIMESTRAL"),N17,IF(AND(N23="TRIMESTRAL",J23="SEMESTRAL"),"REVISAR FRECUENCIAS",IF(AND(N23="TRIMESTRAL",J23="ANUAL"),"REVISAR FRECUENCIAS",IF(AND(N23="MENSUAL",J23="MENSUAL"),N17,IF(AND(N23="MENSUAL",J23="TRIMESTRAL"),"REVISAR FRECUENCIAS",IF(AND(N23="MENSUAL",J23="SEMESTRAL"),"REVISAR FRECUENCIAS",IF(AND(N23="MENSUAL",J23="ANUAL"),"REVISAR FRECUENCIAS","")))))))))))))))) -> 0 | E50: =IF(AND(N23="ANUAL",J23="MENSUAL"),N17/12+D50,IF(AND(N23="ANUAL",J23="TRIMESTRAL"),N17/4+D50,IF(AND(N23="ANUAL",J23="SEMESTRAL"),N17/2+D50,IF(AND(N23="SEMESTRAL",J23="MENSUAL"),N17/6+D50,IF(AND(N23="SEMESTRAL",J23="TRIMESTRAL"),N17/2+D50,IF(AND(N23="SEMESTRAL",J23="SEMESTRAL"),N17,IF(AND(N23="TRIMESTRAL",J23="MENSUAL"),N17/3+D50,IF(AND(N23="TRIMESTRAL",J23="TRIMESTRAL"),N17,IF(AND(N23="MENSUAL",J23="MENSUAL"),N17,""))))))))) -> 0 | F50: =IF(AND(N23="ANUAL",J23="MENSUAL"),N17/12+E50,IF(AND(N23="ANUAL",J23="TRIMESTRAL"),N17/4+E50,IF(AND(N23="SEMESTRAL",J23="MENSUAL"),N17/6+E50,IF(AND(N23="SEMESTRAL",J23="TRIMESTRAL"),N17/2,IF(AND(N23="TRIMESTRAL",J23="MENSUAL"),N17/3+E50,IF(AND(N23="TRIMESTRAL",J23="TRIMESTRAL"),N17,IF(AND(N23="MENSUAL",J23="MENSUAL"),N17,""))))))) -> 0 | G50: =IF(AND(N23="ANUAL",J23="MENSUAL"),N17/12+F50,IF(AND(N23="ANUAL",J23="TRIMESTRAL"),N17/4+F50,IF(AND(N23="SEMESTRAL",J23="MENSUAL"),N17/6+F50,IF(AND(N23="SEMESTRAL",J23="TRIMESTRAL"),N17/2+F50,IF(AND(N23="TRIMESTRAL",J23="MENSUAL"),N17/3,IF(AND(N23="TRIMESTRAL",J23="TRIMESTRAL"),N17,IF(AND(N23="MENSUAL",J23="MENSUAL"),N17,""))))))) -> 0 | H50: =IF(AND($N$23="ANUAL",$J$23="MENSUAL"),$N$17/12+G50,IF(AND(N23="SEMESTRAL",J23="MENSUAL"),N17/6+G50,IF(AND(N23="TRIMESTRAL",J23="MENSUAL"),N17/3+G50,IF(AND(N23="MENSUAL",J23="MENSUAL"),N17,"")))) ->  | I50: =IF(AND($N$23="ANUAL",$J$23="MENSUAL"),$N$17/12+H50,IF(AND(N23="SEMESTRAL",J23="MENSUAL"),N17/6+H50,IF(AND(N23="TRIMESTRAL",J23="MENSUAL"),N17/3+H50,IF(AND(N23="MENSUAL",J23="MENSUAL"),N17,"")))) ->  | J50: =IF(AND($N$23="ANUAL",$J$23="MENSUAL"),$N$17/12+I50,IF(AND(N23="SEMESTRAL",J23="MENSUAL"),N17/6,IF(AND(N23="TRIMESTRAL",J23="MENSUAL"),N17/3,IF(AND(N23="MENSUAL",J23="MENSUAL"),N17,"")))) ->  | K50: =IF(AND($N$23="ANUAL",$J$23="MENSUAL"),$N$17/12+J50,IF(AND(N23="SEMESTRAL",J23="MENSUAL"),N17/6+J50,IF(AND(N23="TRIMESTRAL",J23="MENSUAL"),N17/3+J50,IF(AND(N23="MENSUAL",J23="MENSUAL"),N17,"")))) ->  | L50: =IF(AND($N$23="ANUAL",$J$23="MENSUAL"),$N$17/12+K50,IF(AND(N23="SEMESTRAL",J23="MENSUAL"),N17/6+K50,IF(AND(N23="TRIMESTRAL",J23="MENSUAL"),N17/3+K50,IF(AND(N23="MENSUAL",J23="MENSUAL"),N17,"")))) ->  | M50: =IF(AND($N$23="ANUAL",$J$23="MENSUAL"),$N$17/12+L50,IF(AND(N23="SEMESTRAL",J23="MENSUAL"),N17/6+L50,IF(AND(N23="TRIMESTRAL",J23="MENSUAL"),N17/3,IF(AND(N23="MENSUAL",J23="MENSUAL"),N17,"")))) ->  | N50: =IF(AND($N$23="ANUAL",$J$23="MENSUAL"),$N$17/12+M50,IF(AND(N23="SEMESTRAL",J23="MENSUAL"),N17/6+M50,IF(AND(N23="TRIMESTRAL",J23="MENSUAL"),N17/3+M50,IF(AND(N23="MENSUAL",J23="MENSUAL"),N17,"")))) ->  | O50: =IF(AND($N$23="ANUAL",$J$23="MENSUAL"),$N$17/12+N50,IF(AND(N23="SEMESTRAL",J23="MENSUAL"),N17/6+N50,IF(AND(N23="TRIMESTRAL",J23="MENSUAL"),N17/3+N50,IF(AND(N23="MENSUAL",J23="MENSUAL"),N17,"")))) -> 
C52: NIVEL DE SEGREGACIÓN *
C53: UNIDAD SEGREGADA (Ej. Facultad, Programa Académico, Área) | G53: RESULTADO | K53: ANALISIS DE DATOS SEGREGADO
G72: Estratégico | J72: Eficacia
G73: Misional | J73: Eficiencia
G74: Apoyo | J74: Acreditación
G75: Seguimiento, Medición, Análisis y Evaluación | J75: Positiva
G76: Direccionamiento Estratégico | J76: Negativa
G77: Planeación Institucional | J77: Por Unidad Regional
G78: Proyectos Especiales y Relaciones Interinstitucionales | J78: Por Facultad
G79: Sistemas Integrados | J79: Por Programa Académico
G80: Autoevaluación y Acreditación | J80: Por área
G81: Comunicaciones | J81: Por Laboratorio
G82: Formación y Aprendizaje | J82: Otros
G83: Ciencia, Tecnología e Innovación | J83: No Aplica
G84: Interacción Social Universitaria
G85: Bienestar Universitario
G86: Admisiones y Registro
G87: Graduados
G88: Dialogando con el Mundo
G89: Talento Humano
G90: Jurídica
G91: Financiera
G92: Sistemas y Tecnología
G93: Bienes y Servicios
G94: Documental
G95: Apoyo Académico
G96: Control Interno
G97: Control Disciplinario
G98: Servicio de Atención al Ciudadano

Sheet MBU-7
B2: REGRESAR
E5: MACROPROCESO ESTRATÉGICO | M5: CÓDIGO: ESGr027
E6: PROCESO GESTIÓN SISTEMAS INTEGRADOS - CALIDAD | M6: VERSIÓN: 8
E7: MATRIZ DE MEDICIÓN Y SEGUIMIENTO A LOS PROCESOS DE GESTIÓN | M7: VIGENCIA: 2023-07-28
M8: PÁGINA: 2 de 5
C10: FICHA DE INDICADOR
C12: MACROPROCESO | E12: Misional | I12: NOMBRE DEL INDICADOR | K12: Aumento de la participación en los grupos culturales y deportivos
C13: PROCESO GESTIÓN | E13: Bienestar Universitario
C14: RESPONSABLE DE MEDICIÓN | E14: Director de Bienestar Universitario
C16: 1. COMPORTAMIENTO DE INDICADOR
C17: CLASIFICACIÓN DE LA MEDICIÓN | E17: 1 | H17: TIPO DE INDICADOR | J17: Eficacia | L17: META ANUAL | N17: 0.06
C18: FORMULA | E18: NUMERADOR | G18: (# de participantes en el semestre actual - # de participantes en el semestre anterior) *100 | L18: UNIDAD DE MEDIDA | N18: Porcentual
E19: DENOMINADOR | G19: # de participantes en el semestre anterior
C20: TENDENCIA | E20: Positiva | H20: NIVEL DE SEGREGACIÓN * | J20: Otros | L20: ESCALA
L21: Deficiente | M21: Aceptable | N21: Bueno | O21: Excelente
L22: 0 - 3,9% | M22: 4.0% - 4.9% | N22: 5% - 5,9% | O22: 6% - 100%
C23: ORIGEN DE DATOS NUMERADOR | E23: Reporte de asistencia en las actividades de Bienestar generado por la plataforma institucional | H23: FRECUENCIA DE LA MEDICIÓN | J23: SEMESTRAL | L23: FRECUENCIA DE RESULTADO | N23: SEMESTRAL
C24: ORIGEN DE DATOS DENOMINADOR | E24: Reporte de asistencia en las actividades de Bienestar generado por la plataforma institucional
C26: RESULTADOS
J27: ANÁLISIS DE DATOS
J28: I SEMESTRE: Para el IPA 2024 se logra alcanzar la meta propuesta para este indicador, llegando al 6,5 % de participación de la comunidad universitaria en los procesos formativos y competitivos, en las diferentes ramas culturales y deportivas que aportan al aprovechamiento del tiempo libre y a la formación para la vida no solo en el ambito cultural y social, sino también a nivel personal, laboral y familiar, ya que mediante la formación en estos procesos se busca también fortalecer valores como el trabajo en equipo, la convivencia, la disciplina y la tolerancia. II SEMESTRE: En el IIPA 2024 se da cumplimiento a la meta definida, incrementando la participación en los grupos culturales y deportivos en un 6,2%. Los procesos formativos en las diferentes modalidades culturales y deportivas, se desarrollan durante todo el periodo academico, abriendo espacios para la participación de estudiantes, gestores del conocimiento y el aprendizaje, administrativos y graduados, con el fin no solo de fortalecer las habilidades artististicas y deportivas, sino de generar impactos en la formación de la persona mediante la apropiación de valores y la convivencia en comunidad.
J35: ACCIÓN FORMULADA
J36: I SEMESTRE: En el IPA 2024, se continúa fortaleciendo los procesos de divulgación y convocatoria a los grupos de formación, mediante la implementación de diferentes estrategias, diseño y planeación de experiencias en aras de despertar el interés de la comunidad univeraitaria en los procesos de formación cultural y deportiva mediante sesiones o entrenamientos específicos de acuerdo a cada modalidad, debidamente programados y planeados, los cuales están enfocados en el aprovechamiento del tiempo libre y en el fortalecimiento de aptitudes culturales y deportivas. II SEMESTRE: El cumplimiento de la meta establecida obedece a los procesos de convocatoria e invitación a todos los grupos de interés, la cual se despliega de manera masiva, mediante difusión en redes, difusión con los programas académicos, correos, entre otros, para que la comunidad universitaria sea participe de los programas formativos que ofrece la institución a través del área de Bienestar Universitario. Al inicio de semestre se da apertura a la inscripciones, las cuales estan permanentemente disponibles y se fortalecen las estrategias de difusión. De otra parte, cada orientador realiza la planeación de las sesiones formativas las cuales están enfocados en el aprovechamiento del tiempo libre y en el fortalecimiento de aptitudes y actitudes culturales y deportivas.
J43: RESPONSABLE
J44: =E14 -> Director de Bienestar Universitario
C47: PERIODO DE EVALUACIÓN
C48: MES | D48: JUNIO | E48: DICIEMBRE | F48: =IF(J23="MENSUAL","MARZO",IF(J23="TRIMESTRAL","SEPTIEMBRE","")) ->  | G48: =IF(J23="MENSUAL","ABRIL",IF(J23="TRIMESTRAL","DICIEMBRE","")) ->  | H48: =IF(J23="MENSUAL","MAYO","") ->  | I48: =IF(J23="MENSUAL","JUNIO","") ->  | J48: =IF(J23="MENSUAL","JULIO","") ->  | K48: =IF(J23="MENSUAL","AGOSTO","") ->  | L48: =IF(J23="MENSUAL","SEPTIEMBRE","") ->  | M48: =IF(J23="MENSUAL","OCTUBRE","") ->  | N48: =IF(J23="MENSUAL","NOVIEMBRE","") ->  | O48: =IF(J23="MENSUAL","DICIEMBRE","") -> 
C49: =G18 -> (# de participantes en el semestre actual - # de participantes en el semestre anterior) *100 | D49: =1267+1372 -> 2639 | E49: =1030+1773 -> 2803
C50: =G19 -> # de participantes en el semestre anterior | D50: 2478 | E50: 2639
C51: VALOR | D51: =(D49-D50)/(D50) -> 0.06497175141 | E51: =(E49-E50)/(E50) -> 0.0621447518 | G51: =IFERROR(IF($E$17=1,G49/G50,IF($E$17=2,G49,"")),"") -> 
C52: META PONDERADA | D52: =IF(AND(N23="ANUAL",J23="MENSUAL"),N17/12,IF(AND(N23="ANUAL",J23="TRIMESTRAL"),N17/4,IF(AND(N23="ANUAL",J23="SEMESTRAL"),N17/2,IF(AND(N23="ANUAL",J23="ANUAL"),N17,IF(AND(N23="SEMESTRAL",J23="MENSUAL"),N17/6,IF(AND(N23="SEMESTRAL",J23="TRIMESTRAL"),N17/2,IF(AND(N23="SEMESTRAL",J23="SEMESTRAL"),N17,IF(AND(N23="SEMESTRAL",J23="ANUAL"),"REVISAR FRECUENCIAS",IF(AND(N23="TRIMESTRAL",J23="MENSUAL"),N17/3,IF(AND(N23="TRIMESTRAL",J23="TRIMESTRAL"),N17,IF(AND(N23="TRIMESTRAL",J23="SEMESTRAL"),"REVISAR FRECUENCIAS",IF(AND(N23="TRIMESTRAL",J23="ANUAL"),"REVISAR FRECUENCIAS",IF(AND(N23="MENSUAL",J23="MENSUAL"),N17,IF(AND(N23="MENSUAL",J23="TRIMESTRAL"),"REVISAR FRECUENCIAS",IF(AND(N23="MENSUAL",J23="SEMESTRAL"),"REVISAR FRECUENCIAS",IF(AND(N23="MENSUAL",J23="ANUAL"),"REVISAR FRECUENCIAS","")))))))))))))))) -> 0.06 | E52: =IF(AND(N23="ANUAL",J23="MENSUAL"),N17/12+D52,IF(AND(N23="ANUAL",J23="TRIMESTRAL"),N17/4+D52,IF(AND(N23="ANUAL",J23="SEMESTRAL"),N17/2+D52,IF(AND(N23="SEMESTRAL",J23="MENSUAL"),N17/6+D52,IF(AND(N23="SEMESTRAL",J23="TRIMESTRAL"),N17/2+D52,IF(AND(N23="SEMESTRAL",J23="SEMESTRAL"),N17,IF(AND(N23="TRIMESTRAL",J23="MENSUAL"),N17/3+D52,IF(AND(N23="TRIMESTRAL",J23="TRIMESTRAL"),N17,IF(AND(N23="MENSUAL",J23="MENSUAL"),N17,""))))))))) -> 0.06 | F52: =IF(AND(N23="ANUAL",J23="MENSUAL"),N17/12+E52,IF(AND(N23="ANUAL",J23="TRIMESTRAL"),N17/4+E52,IF(AND(N23="SEMESTRAL",J23="MENSUAL"),N17/6+E52,IF(AND(N23="SEMESTRAL",J23="TRIMESTRAL"),N17/2,IF(AND(N23="TRIMESTRAL",J23="MENSUAL"),N17/3+E52,IF(AND(N23="TRIMESTRAL",J23="TRIMESTRAL"),N17,IF(AND(N23="MENSUAL",J23="MENSUAL"),N17,""))))))) ->  | G52: =IF(AND(N23="ANUAL",J23="MENSUAL"),N17/12+F52,IF(AND(N23="ANUAL",J23="TRIMESTRAL"),N17/4+F52,IF(AND(N23="SEMESTRAL",J23="MENSUAL"),N17/6+F52,IF(AND(N23="SEMESTRAL",J23="TRIMESTRAL"),N17/2+F52,IF(AND(N23="TRIMESTRAL",J23="MENSUAL"),N17/3,IF(AND(N23="TRIMESTRAL",J23="TRIMESTRAL"),N17,IF(AND(N23="MENSUAL",J23="MENSUAL"),N17,""))))))) ->  | H52: =IF(AND($N$23="ANUAL",$J$23="MENSUAL"),$N$17/12+G52,IF(AND(N23="SEMESTRAL",J23="MENSUAL"),N17/6+G52,IF(AND(N23="TRIMESTRAL",J23="MENSUAL"),N17/3+G52,IF(AND(N23="MENSUAL",J23="MENSUAL"),N17,"")))) ->  | I52: =IF(AND($N$23="ANUAL",$J$23="MENSUAL"),$N$17/12+H52,IF(AND(N23="SEMESTRAL",J23="MENSUAL"),N17/6+H52,IF(AND(N23="TRIMESTRAL",J23="MENSUAL"),N17/3+H52,IF(AND(N23="MENSUAL",J23="MENSUAL"),N17,"")))) ->  | J52: =IF(AND($N$23="ANUAL",$J$23="MENSUAL"),$N$17/12+I52,IF(AND(N23="SEMESTRAL",J23="MENSUAL"),N17/6,IF(AND(N23="TRIMESTRAL",J23="MENSUAL"),N17/3,IF(AND(N23="MENSUAL",J23="MENSUAL"),N17,"")))) ->  | K52: =IF(AND($N$23="ANUAL",$J$23="MENSUAL"),$N$17/12+J52,IF(AND(N23="SEMESTRAL",J23="MENSUAL"),N17/6+J52,IF(AND(N23="TRIMESTRAL",J23="MENSUAL"),N17/3+J52,IF(AND(N23="MENSUAL",J23="MENSUAL"),N17,"")))) ->  | L52: =IF(AND($N$23="ANUAL",$J$23="MENSUAL"),$N$17/12+K52,IF(AND(N23="SEMESTRAL",J23="MENSUAL"),N17/6+K52,IF(AND(N23="TRIMESTRAL",J23="MENSUAL"),N17/3+K52,IF(AND(N23="MENSUAL",J23="MENSUAL"),N17,"")))) ->  | M52: =IF(AND($N$23="ANUAL",$J$23="MENSUAL"),$N$17/12+L52,IF(AND(N23="SEMESTRAL",J23="MENSUAL"),N17/6+L52,IF(AND(N23="TRIMESTRAL",J23="MENSUAL"),N17/3,IF(AND(N23="MENSUAL",J23="MENSUAL"),N17,"")))) ->  | N52: =IF(AND($N$23="ANUAL",$J$23="MENSUAL"),$N$17/12+M52,IF(AND(N23="SEMESTRAL",J23="MENSUAL"),N17/6+M52,IF(AND(N23="TRIMESTRAL",J23="MENSUAL"),N17/3+M52,IF(AND(N23="MENSUAL",J23="MENSUAL"),N17,"")))) ->  | O52: =IF(AND($N$23="ANUAL",$J$23="MENSUAL"),$N$17/12+N52,IF(AND(N23="SEMESTRAL",J23="MENSUAL"),N17/6+N52,IF(AND(N23="TRIMESTRAL",J23="MENSUAL"),N17/3+N52,IF(AND(N23="MENSUAL",J23="MENSUAL"),N17,"")))) -> 
C54: NIVEL DE SEGREGACIÓN *
C55: UNIDAD SEGREGADA (Ej. Facultad, Programa Académico, Área) | G55: RESULTADO | K55: ANÁLISIS DE DATOS SEGREGADO
C56: Creador de oportunidades | G56: 2464 | K56: Se evidencia que del total de participantes en los grupos formativos, el 87,9 % corresponde a la población estudiantil, quienes hacen parte de las diferentes modalidades culturales y deportivas, evidenciando que al ser los estudiantes la población más numerosa, son ellos los más interesados en ser parte de alguna práctica artística o deportiva.
C57: Gestor del conocimiento y el aprendizaje | G57: 45 | K57: Así mismo se contó con la participación de 45 docentes, representados en el 1,6% del total de participantes dentro de los grupos formativos para el IIPA 2024.
C58: Administrativos | G58: 146 | K58: En el caso de los administrativos, se observa la participación de 146 funcionarios (5,2%), quienes hacen parte de las diferentes disciplinas culturales y deportivas, con lo cual se evidencia el aprovechamiento del tiempo libre en esta parte de la población, lo que contribuye a mejorar su estado de salud física y mental.
C59: Graduados | G59: 148 | K59: Se contó con la participación de 148 graduados (5,3%) quienes se vincularon en las diferentes sesiones de entrenamiento y formación en el transcurso del periodo académico, así como en las estrategias y experiencias diseñadas desdes bienestar universitario.
G71: Estratégico | J71: Eficacia
G72: Misional | J72: Eficiencia
G73: Apoyo | J73: Acreditación
G74: Seguimiento, Medición, Análisis y Evaluación | J74: Positiva
G75: Direccionamiento Estratégico | J75: Negativa
G76: Planeación Institucional | J76: Por Unidad Regional
G77: Proyectos Especiales y Relaciones Interinstitucionales | J77: Por Facultad
G78: Sistemas Integrados | J78: Por Programa Académico
G79: Autoevaluación y Acreditación | J79: Por área
G80: Comunicaciones | J80: Por Laboratorio
G81: Formación y Aprendizaje | J81: Otros
G82: Ciencia, Tecnología e Innovación | J82: No Aplica
G83: Interacción Social Universitaria
G84: Bienestar Universitario
G85: Admisiones y Registro
G86: Graduados
G87: Dialogando con el Mundo
G88: Talento Humano
G89: Jurídica
G90: Financiera
G91: Sistemas y Tecnología
G92: Bienes y Servicios
G93: Documental
G94: Apoyo Académico
G95: Control Interno
G96: Control Disciplinario
G97: Servicio de Atención al Ciudadano

Sheet MBU-8
B2: REGRESAR
E5: MACROPROCESO ESTRATÉGICO | M5: CÓDIGO: ESGr027
E6: PROCESO GESTIÓN SISTEMAS INTEGRADOS - CALIDAD | M6: VERSIÓN: 8
E7: MATRIZ DE MEDICIÓN Y SEGUIMIENTO A LOS PROCESOS DE GESTIÓN | M7: VIGENCIA: 2023-07-28
M8: PÁGINA: 3 de 5
C10: FICHA DE INDICADOR
C12: MACROPROCESO | E12: Misional | I12: NOMBRE DEL INDICADOR | K12: Acompañamiento interdisciplinar (Participantes ASCUN derportivos)
C13: PROCESO GESTIÓN | E13: Bienestar Universitario
C14: RESPONSABLE DE MEDICIÓN | E14: Director de Bienestar Universitario
C16: 1. COMPORTAMIENTO DE INDICADOR
C17: CLASIFICACIÓN DE LA MEDICIÓN | E17: 1 | H17: TIPO DE INDICADOR | J17: Eficacia | L17: META ANUAL | N17: 0.7
C18: FORMULA | E18: NUMERADOR | G18: # de personas que recibieron acompañamiento | L18: UNIDAD DE MEDIDA | N18: Porcentual
E19: DENOMINADOR | G19: # total de personas que participan en ASCUN deportivo * 100
C20: TENDENCIA | E20: Positiva | H20: NIVEL DE SEGREGACIÓN * | J20: No Aplica | L20: ESCALA
L21: Deficiente | M21: Aceptable | N21: Bueno | O21: Excelente
L22: 0 - 49,9% | M22: 50% - 59,9% | N22: 60% - 69,9% | O22: 70% - 100%
C23: ORIGEN DE DATOS NUMERADOR | E23: Formato MBUr108 | H23: FRECUENCIA DE LA MEDICIÓN | J23: SEMESTRAL | L23: FRECUENCIA DE RESULTADO | N23: SEMESTRAL
C24: ORIGEN DE DATOS DENOMINADOR | E24: Formato MBUr108
C26: RESULTADOS
J27: ANÁLISIS DE DATOS
J28: I SEMESTRE: Teniendo en cuenta que la meta definida para este indicador es brindar acompañamiento interdisciplinar a mínimo el 70% de los participantes ASCUN deportes, se evidencia que para el primer periodo académico 2024, se cumple con el indicador, dado que se logra hacer acompañamiento interdisciplinar al 87% de los participantes en las diferentes modalidades deportivas, lo que corresponde a 184 de los 212 deportistas que representaron a la Universidad de Cundinamarca en las diferentes competencias regionales. II SEMESTRE: Para el segundo periodo académico 2024, la Universidad de Cundinamarca tuvo representación en juegos Nacionales ASCUN por parte de la población estudiantil, así como de los gestores del conocimiento y el aprendizaje y el personal administrativo, para lo cual se brindo acompañamiento interdisciplinar a 94 personas de las 116 que participaron en las competencias deportivas. Esto se representa en un 81%, lo cual da cumplimiento a la meta propuesta.
J33: ACCIÓN FORMULADA
J34: I SEMESTRE: Se realiza la medición del número de acompañamientos realizados a los deportistas que representan a la Universidad de Cundinamarca en las diferentes competencias deportivas, logrando brindar acompañamiento al 87% de los participantes que participaron en competencias regionales. Lo anterior se logra gracias a la articulación realizada entre el equipo de bienestar físico, los orientadores de las diferentes ramas deportivas, los estudiantes, los gestores y los administrativos, en donde se buscaron espacios en los cuales se pudiera realizar el proceso tanto en la sede, como en seccionales y extensiones, de tal manera que se logrará valorar a la mayor parte de los deportistas. II SEMESTRE: Para lograr el cumplimiento de la meta, se generaron procesos de articulación entre los orientadores deportivos, participantes del los grupos formativos y equipo de bienestar saludable, programando los acompañamientos y haciendo seguimiento a cada de uno de los participantes, de tal manera que se lograra realizar el seguimiento respectivo a los participantes de ASCUN que fueron en el 2024-1 y que pasaron a nacionales, con el fin de analizar si se mantienen sus condiciones de salud, su estado físico, así como brindar orientación en los casos que fuese necesario. Se brindan recomendaciones desde el área de fisioterapia con el fin de mejorar el rendimiento deportivo, así como para promover el autocuidado.
J40: RESPONSABLE
J41: =E14 -> Director de Bienestar Universitario
C44: PERIODO DE EVALUACIÓN
C45: MES | D45: =IF(J23="MENSUAL","ENERO",IF(J23="TRIMESTRAL","MARZO",IF(J23="SEMESTRAL","JUNIO",IF(J23="ANUAL",YEAR(TODAY()),"")))) -> JUNIO | E45: =IF(J23="MENSUAL","FEBRERO",IF(J23="TRIMESTRAL","JUNIO",IF(J23="SEMESTRAL","DICIEMBRE",""))) -> DICIEMBRE | F45: =IF(J23="MENSUAL","MARZO",IF(J23="TRIMESTRAL","SEPTIEMBRE","")) ->  | G45: =IF(J23="MENSUAL","ABRIL",IF(J23="TRIMESTRAL","DICIEMBRE","")) ->  | H45: =IF(J23="MENSUAL","MAYO","") ->  | I45: =IF(J23="MENSUAL","JUNIO","") ->  | J45: =IF(J23="MENSUAL","JULIO","") ->  | K45: =IF(J23="MENSUAL","AGOSTO","") ->  | L45: =IF(J23="MENSUAL","SEPTIEMBRE","") ->  | M45: =IF(J23="MENSUAL","OCTUBRE","") ->  | N45: =IF(J23="MENSUAL","NOVIEMBRE","") ->  | O45: =IF(J23="MENSUAL","DICIEMBRE","") -> 
C46: =G18 -> # de personas que recibieron acompañamiento | D46: 184 | E46: 94
C47: =G19 -> # total de personas que participan en ASCUN deportivo * 100 | D47: 212 | E47: 116
C48: VALOR | D48: =IFERROR(IF($E$17=1,D46/D47,IF($E$17=2,D46,"")),"") -> 0.8679245283 | E48: =IFERROR(IF($E$17=1,E46/E47,IF($E$17=2,E46,"")),"") -> 0.8103448276
C49: META PONDERADA | D49: =IF(AND(N23="ANUAL",J23="MENSUAL"),N17/12,IF(AND(N23="ANUAL",J23="TRIMESTRAL"),N17/4,IF(AND(N23="ANUAL",J23="SEMESTRAL"),N17/2,IF(AND(N23="ANUAL",J23="ANUAL"),N17,IF(AND(N23="SEMESTRAL",J23="MENSUAL"),N17/6,IF(AND(N23="SEMESTRAL",J23="TRIMESTRAL"),N17/2,IF(AND(N23="SEMESTRAL",J23="SEMESTRAL"),N17,IF(AND(N23="SEMESTRAL",J23="ANUAL"),"REVISAR FRECUENCIAS",IF(AND(N23="TRIMESTRAL",J23="MENSUAL"),N17/3,IF(AND(N23="TRIMESTRAL",J23="TRIMESTRAL"),N17,IF(AND(N23="TRIMESTRAL",J23="SEMESTRAL"),"REVISAR FRECUENCIAS",IF(AND(N23="TRIMESTRAL",J23="ANUAL"),"REVISAR FRECUENCIAS",IF(AND(N23="MENSUAL",J23="MENSUAL"),N17,IF(AND(N23="MENSUAL",J23="TRIMESTRAL"),"REVISAR FRECUENCIAS",IF(AND(N23="MENSUAL",J23="SEMESTRAL"),"REVISAR FRECUENCIAS",IF(AND(N23="MENSUAL",J23="ANUAL"),"REVISAR FRECUENCIAS","")))))))))))))))) -> 0.7 | E49: =IF(AND(N23="ANUAL",J23="MENSUAL"),N17/12+D49,IF(AND(N23="ANUAL",J23="TRIMESTRAL"),N17/4+D49,IF(AND(N23="ANUAL",J23="SEMESTRAL"),N17/2+D49,IF(AND(N23="SEMESTRAL",J23="MENSUAL"),N17/6+D49,IF(AND(N23="SEMESTRAL",J23="TRIMESTRAL"),N17/2+D49,IF(AND(N23="SEMESTRAL",J23="SEMESTRAL"),N17,IF(AND(N23="TRIMESTRAL",J23="MENSUAL"),N17/3+D49,IF(AND(N23="TRIMESTRAL",J23="TRIMESTRAL"),N17,IF(AND(N23="MENSUAL",J23="MENSUAL"),N17,""))))))))) -> 0.7 | F49: =IF(AND(N23="ANUAL",J23="MENSUAL"),N17/12+E49,IF(AND(N23="ANUAL",J23="TRIMESTRAL"),N17/4+E49,IF(AND(N23="SEMESTRAL",J23="MENSUAL"),N17/6+E49,IF(AND(N23="SEMESTRAL",J23="TRIMESTRAL"),N17/2,IF(AND(N23="TRIMESTRAL",J23="MENSUAL"),N17/3+E49,IF(AND(N23="TRIMESTRAL",J23="TRIMESTRAL"),N17,IF(AND(N23="MENSUAL",J23="MENSUAL"),N17,""))))))) ->  | G49: =IF(AND(N23="ANUAL",J23="MENSUAL"),N17/12+F49,IF(AND(N23="ANUAL",J23="TRIMESTRAL"),N17/4+F49,IF(AND(N23="SEMESTRAL",J23="MENSUAL"),N17/6+F49,IF(AND(N23="SEMESTRAL",J23="TRIMESTRAL"),N17/2+F49,IF(AND(N23="TRIMESTRAL",J23="MENSUAL"),N17/3,IF(AND(N23="TRIMESTRAL",J23="TRIMESTRAL"),N17,IF(AND(N23="MENSUAL",J23="MENSUAL"),N17,""))))))) ->  | H49: =IF(AND($N$23="ANUAL",$J$23="MENSUAL"),$N$17/12+G49,IF(AND(N23="SEMESTRAL",J23="MENSUAL"),N17/6+G49,IF(AND(N23="TRIMESTRAL",J23="MENSUAL"),N17/3+G49,IF(AND(N23="MENSUAL",J23="MENSUAL"),N17,"")))) ->  | I49: =IF(AND($N$23="ANUAL",$J$23="MENSUAL"),$N$17/12+H49,IF(AND(N23="SEMESTRAL",J23="MENSUAL"),N17/6+H49,IF(AND(N23="TRIMESTRAL",J23="MENSUAL"),N17/3+H49,IF(AND(N23="MENSUAL",J23="MENSUAL"),N17,"")))) ->  | J49: =IF(AND($N$23="ANUAL",$J$23="MENSUAL"),$N$17/12+I49,IF(AND(N23="SEMESTRAL",J23="MENSUAL"),N17/6,IF(AND(N23="TRIMESTRAL",J23="MENSUAL"),N17/3,IF(AND(N23="MENSUAL",J23="MENSUAL"),N17,"")))) ->  | K49: =IF(AND($N$23="ANUAL",$J$23="MENSUAL"),$N$17/12+J49,IF(AND(N23="SEMESTRAL",J23="MENSUAL"),N17/6+J49,IF(AND(N23="TRIMESTRAL",J23="MENSUAL"),N17/3+J49,IF(AND(N23="MENSUAL",J23="MENSUAL"),N17,"")))) ->  | L49: =IF(AND($N$23="ANUAL",$J$23="MENSUAL"),$N$17/12+K49,IF(AND(N23="SEMESTRAL",J23="MENSUAL"),N17/6+K49,IF(AND(N23="TRIMESTRAL",J23="MENSUAL"),N17/3+K49,IF(AND(N23="MENSUAL",J23="MENSUAL"),N17,"")))) ->  | M49: =IF(AND($N$23="ANUAL",$J$23="MENSUAL"),$N$17/12+L49,IF(AND(N23="SEMESTRAL",J23="MENSUAL"),N17/6+L49,IF(AND(N23="TRIMESTRAL",J23="MENSUAL"),N17/3,IF(AND(N23="MENSUAL",J23="MENSUAL"),N17,"")))) ->  | N49: =IF(AND($N$23="ANUAL",$J$23="MENSUAL"),$N$17/12+M49,IF(AND(N23="SEMESTRAL",J23="MENSUAL"),N17/6+M49,IF(AND(N23="TRIMESTRAL",J23="MENSUAL"),N17/3+M49,IF(AND(N23="MENSUAL",J23="MENSUAL"),N17,"")))) ->  | O49: =IF(AND($N$23="ANUAL",$J$23="MENSUAL"),$N$17/12+N49,IF(AND(N23="SEMESTRAL",J23="MENSUAL"),N17/6+N49,IF(AND(N23="TRIMESTRAL",J23="MENSUAL"),N17/3+N49,IF(AND(N23="MENSUAL",J23="MENSUAL"),N17,"")))) -> 
C51: NIVEL DE SEGREGACIÓN *
C52: UNIDAD SEGREGADA (Ej. Facultad, Programa Académico, Área) | G52: RESULTADO | K52: ANÁLISIS DE DATOS SEGREGADO
G69: Estratégico | J69: Eficacia
G70: Misional | J70: Eficiencia
G71: Apoyo | J71: Acreditación
G72: Seguimiento, Medición, Análisis y Evaluación | J72: Positiva
G73: Direccionamiento Estratégico | J73: Negativa
G74: Planeación Institucional | J74: Por Unidad Regional
G75: Proyectos Especiales y Relaciones Interinstitucionales | J75: Por Facultad
G76: Sistemas Integrados | J76: Por Programa Académico
G77: Autoevaluación y Acreditación | J77: Por área
G78: Comunicaciones | J78: Por Laboratorio
G79: Formación y Aprendizaje | J79: Otros
G80: Ciencia, Tecnología e Innovación | J80: No Aplica
G81: Interacción Social Universitaria
G82: Bienestar Universitario
G83: Admisiones y Registro
G84: Graduados
G85: Dialogando con el Mundo
G86: Talento Humano
G87: Jurídica
G88: Financiera
G89: Sistemas y Tecnología
G90: Bienes y Servicios
G91: Documental
G92: Apoyo Académico
G93: Control Interno
G94: Control Disciplinario
G95: Servicio de Atención al Ciudadano

Sheet MBU-9
B2: REGRESAR
E5: MACROPROCESO ESTRATÉGICO | M5: CÓDIGO: ESGr027
E6: PROCESO GESTIÓN SISTEMAS INTEGRADOS - CALIDAD | M6: VERSIÓN: 8
E7: MATRIZ DE MEDICIÓN Y SEGUIMIENTO A LOS PROCESOS DE GESTIÓN | M7: VIGENCIA: 2023-07-28
M8: PÁGINA: 4 de 5
C10: FICHA DE INDICADOR
C12: MACROPROCESO | E12: Misional | I12: NOMBRE DEL INDICADOR | K12: Participación de la Comunidad Universitaria
C13: PROCESO GESTIÓN | E13: Bienestar Universitario
C14: RESPONSABLE DE MEDICIÓN | E14: Director de Bienestar Universitario
C16: 1. COMPORTAMIENTO DE INDICADOR
C17: CLASIFICACIÓN DE LA MEDICIÓN | E17: 1 | H17: TIPO DE INDICADOR | J17: Acreditación | L17: META ANUAL | N17: 0.7
C18: FORMULA | E18: NUMERADOR | G18: # de personas de la comunidad universitaria (estudiantes, docentes y administrativos) que participan en las actividades desarrolladas por Bienestar Universitario * 100 | L18: UNIDAD DE MEDIDA | N18: Porcentual
E19: DENOMINADOR | G19: Total de personas de la comunidad universitaria
C20: TENDENCIA | E20: Positiva | H20: NIVEL DE SEGREGACIÓN * | J20: Otros | L20: ESCALA
L21: Deficiente | M21: Aceptable | N21: Bueno | O21: Excelente
L22: 0% - 20,9% | M22: 21% - 29,9% | N22: 30% - 69,9% | O22: 70% - 100%
C23: ORIGEN DE DATOS NUMERADOR | E23: Reporte de asistencia en las actividades de Bienestar generado por la plataforma institucional | H23: FRECUENCIA DE LA MEDICIÓN | J23: SEMESTRAL | L23: FRECUENCIA DE RESULTADO | N23: SEMESTRAL
C24: ORIGEN DE DATOS DENOMINADOR | E24: Reporte de asistencia en las actividades de Bienestar generado por la plataforma institucional
C26: RESULTADOS
J27: ANÁLISIS DE DATOS
J28: I SEMESTRE: Teniendo en cuenta que la meta anual para este indicador, es llegar mínimo al 70% de la población universitaria, para el IPA 2024 se evidencia un cumplimiento en la escala de excelente, dado que se logró llegar al 83% de la comunidad Universitaria, encontrando una participación significativa en las diferentes estrategias y experiencias impartidas desde el proceso de Bienestar Universitario. Este resultado es producto de la planeación y articulación de los profesionales del área, así como de las acciones realizadas en los procesos de difusión y convocatoria de los diferentes encuentros, campañas, experiencias culturales y deportivas, estrategias de formación para la vida, estrategias de permanencia, y en general de las diferentes apuestas y retos que se proponen desde el equipo de trabajo de bienestar universitario, con el fin de mejorar la calidad de vida de toda la comunidad universitaria, así como promover hábitos y entornos de vida saludable. II SEMESTRE: En el IIPA 2024, se alcanzó una participación del 84% de la comunidad universitaria en las diferentes experiencias y encuentros de bienestar universitario. Este resultado se obtuvo gracias a los procesos de planificación, difusión y articulación de las estrategias propuestas, el desarrollo de nuevas experiencias, así como a las acciones ejecutadas en la convocatoria y promoción de experiencias culturales y deportivas, estrategias de formación para la vida, acciones de permanencia y demás acciones que promueven el bienestar institucional.
J34: ACCIÓN FORMULADA
J35: I SEMESTRE: Se ejecutaron las acciones programadas en el cronograma de bienestar, las cuales fueron importantes para el cumplimiento del indicador, dado que se convoco de manera masiva y efectiva a cada uno de los grupos poblacionales, por medio de piezas publicitarias, correos masivos y publicaciones en redes, llevando a cabo una amplia divulgación de los encuentros, campañas y talleres, así como una oferta diversa con estrategias dirigidas hacia los diferentes estamentos de la institución, en lo relacionado a las estrategias enfocadas en el bienestar fisico y mental, aprovechamiento del tiempo libre, desarrollo de habilidades, involucramiento de las familias, entre otras que se llevaron a cabo en articulación con diferentes entes externos para el cumplimiento de los objetivos propuestos relacionados con el bienestar de la comunidad universitaria. II SEMESTRE: Los procesos de divulgación masiva por medio de redes sociales institucionales, correos, publicaciones en página web, así como el desarrollo de nuevas experiencias, fueron algunas de las herramientas que permitieron alcanzar la meta establecida para este indicador. Por otro lado, se ejecutaron las experiencias programadas en el calendario de bienestar universitario, promoviendo hábitos de vida saludable, la salud física y mental de toda la comunidad universitaria.
J41: RESPONSABLE
J42: =E14 -> Director de Bienestar Universitario
C45: PERIODO DE EVALUACIÓN
C46: MES | D46: JUNIO | E46: DICIEMBRE | F46: =IF(J23="MENSUAL","MARZO",IF(J23="TRIMESTRAL","SEPTIEMBRE","")) ->  | G46: =IF(J23="MENSUAL","ABRIL",IF(J23="TRIMESTRAL","DICIEMBRE","")) ->  | H46: =IF(J23="MENSUAL","MAYO","") ->  | I46: =IF(J23="MENSUAL","JUNIO","") ->  | J46: =IF(J23="MENSUAL","JULIO","") ->  | K46: =IF(J23="MENSUAL","AGOSTO","") ->  | L46: =IF(J23="MENSUAL","SEPTIEMBRE","") ->  | M46: =IF(J23="MENSUAL","OCTUBRE","") ->  | N46: =IF(J23="MENSUAL","NOVIEMBRE","") ->  | O46: =IF(J23="MENSUAL","DICIEMBRE","") -> 
C47: =G18 -> # de personas de la comunidad universitaria (estudiantes, docentes y administrativos) que participan en las actividades desarrolladas por Bienestar Universitario * 100 | D47: 11912 | E47: =10356+505+677+710 -> 12248
C48: =G19 -> Total de personas de la comunidad universitaria | D48: 14419 | E48: =12115+983+766+710 -> 14574
C49: VALOR | D49: =IFERROR(IF($E$17=1,D47/D48,IF($E$17=2,D47,"")),"") -> 0.8261321867 | E49: =IFERROR(IF($E$17=1,E47/E48,IF($E$17=2,E47,"")),"") -> 0.8404007136
C50: META PONDERADA | D50: =IF(AND(N23="ANUAL",J23="MENSUAL"),N17/12,IF(AND(N23="ANUAL",J23="TRIMESTRAL"),N17/4,IF(AND(N23="ANUAL",J23="SEMESTRAL"),N17/2,IF(AND(N23="ANUAL",J23="ANUAL"),N17,IF(AND(N23="SEMESTRAL",J23="MENSUAL"),N17/6,IF(AND(N23="SEMESTRAL",J23="TRIMESTRAL"),N17/2,IF(AND(N23="SEMESTRAL",J23="SEMESTRAL"),N17,IF(AND(N23="SEMESTRAL",J23="ANUAL"),"REVISAR FRECUENCIAS",IF(AND(N23="TRIMESTRAL",J23="MENSUAL"),N17/3,IF(AND(N23="TRIMESTRAL",J23="TRIMESTRAL"),N17,IF(AND(N23="TRIMESTRAL",J23="SEMESTRAL"),"REVISAR FRECUENCIAS",IF(AND(N23="TRIMESTRAL",J23="ANUAL"),"REVISAR FRECUENCIAS",IF(AND(N23="MENSUAL",J23="MENSUAL"),N17,IF(AND(N23="MENSUAL",J23="TRIMESTRAL"),"REVISAR FRECUENCIAS",IF(AND(N23="MENSUAL",J23="SEMESTRAL"),"REVISAR FRECUENCIAS",IF(AND(N23="MENSUAL",J23="ANUAL"),"REVISAR FRECUENCIAS","")))))))))))))))) -> 0.7 | E50: =IF(AND(N23="ANUAL",J23="MENSUAL"),N17/12+D50,IF(AND(N23="ANUAL",J23="TRIMESTRAL"),N17/4+D50,IF(AND(N23="ANUAL",J23="SEMESTRAL"),N17/2+D50,IF(AND(N23="SEMESTRAL",J23="MENSUAL"),N17/6+D50,IF(AND(N23="SEMESTRAL",J23="TRIMESTRAL"),N17/2+D50,IF(AND(N23="SEMESTRAL",J23="SEMESTRAL"),N17,IF(AND(N23="TRIMESTRAL",J23="MENSUAL"),N17/3+D50,IF(AND(N23="TRIMESTRAL",J23="TRIMESTRAL"),N17,IF(AND(N23="MENSUAL",J23="MENSUAL"),N17,""))))))))) -> 0.7 | F50: =IF(AND(N23="ANUAL",J23="MENSUAL"),N17/12+E50,IF(AND(N23="ANUAL",J23="TRIMESTRAL"),N17/4+E50,IF(AND(N23="SEMESTRAL",J23="MENSUAL"),N17/6+E50,IF(AND(N23="SEMESTRAL",J23="TRIMESTRAL"),N17/2,IF(AND(N23="TRIMESTRAL",J23="MENSUAL"),N17/3+E50,IF(AND(N23="TRIMESTRAL",J23="TRIMESTRAL"),N17,IF(AND(N23="MENSUAL",J23="MENSUAL"),N17,""))))))) ->  | G50: =IF(AND(N23="ANUAL",J23="MENSUAL"),N17/12+F50,IF(AND(N23="ANUAL",J23="TRIMESTRAL"),N17/4+F50,IF(AND(N23="SEMESTRAL",J23="MENSUAL"),N17/6+F50,IF(AND(N23="SEMESTRAL",J23="TRIMESTRAL"),N17/2+F50,IF(AND(N23="TRIMESTRAL",J23="MENSUAL"),N17/3,IF(AND(N23="TRIMESTRAL",J23="TRIMESTRAL"),N17,IF(AND(N23="MENSUAL",J23="MENSUAL"),N17,""))))))) ->  | H50: =IF(AND($N$23="ANUAL",$J$23="MENSUAL"),$N$17/12+G50,IF(AND(N23="SEMESTRAL",J23="MENSUAL"),N17/6+G50,IF(AND(N23="TRIMESTRAL",J23="MENSUAL"),N17/3+G50,IF(AND(N23="MENSUAL",J23="MENSUAL"),N17,"")))) ->  | I50: =IF(AND($N$23="ANUAL",$J$23="MENSUAL"),$N$17/12+H50,IF(AND(N23="SEMESTRAL",J23="MENSUAL"),N17/6+H50,IF(AND(N23="TRIMESTRAL",J23="MENSUAL"),N17/3+H50,IF(AND(N23="MENSUAL",J23="MENSUAL"),N17,"")))) ->  | J50: =IF(AND($N$23="ANUAL",$J$23="MENSUAL"),$N$17/12+I50,IF(AND(N23="SEMESTRAL",J23="MENSUAL"),N17/6,IF(AND(N23="TRIMESTRAL",J23="MENSUAL"),N17/3,IF(AND(N23="MENSUAL",J23="MENSUAL"),N17,"")))) ->  | K50: =IF(AND($N$23="ANUAL",$J$23="MENSUAL"),$N$17/12+J50,IF(AND(N23="SEMESTRAL",J23="MENSUAL"),N17/6+J50,IF(AND(N23="TRIMESTRAL",J23="MENSUAL"),N17/3+J50,IF(AND(N23="MENSUAL",J23="MENSUAL"),N17,"")))) ->  | L50: =IF(AND($N$23="ANUAL",$J$23="MENSUAL"),$N$17/12+K50,IF(AND(N23="SEMESTRAL",J23="MENSUAL"),N17/6+K50,IF(AND(N23="TRIMESTRAL",J23="MENSUAL"),N17/3+K50,IF(AND(N23="MENSUAL",J23="MENSUAL"),N17,"")))) ->  | M50: =IF(AND($N$23="ANUAL",$J$23="MENSUAL"),$N$17/12+L50,IF(AND(N23="SEMESTRAL",J23="MENSUAL"),N17/6+L50,IF(AND(N23="TRIMESTRAL",J23="MENSUAL"),N17/3,IF(AND(N23="MENSUAL",J23="MENSUAL"),N17,"")))) ->  | N50: =IF(AND($N$23="ANUAL",$J$23="MENSUAL"),$N$17/12+M50,IF(AND(N23="SEMESTRAL",J23="MENSUAL"),N17/6+M50,IF(AND(N23="TRIMESTRAL",J23="MENSUAL"),N17/3+M50,IF(AND(N23="MENSUAL",J23="MENSUAL"),N17,"")))) ->  | O50: =IF(AND($N$23="ANUAL",$J$23="MENSUAL"),$N$17/12+N50,IF(AND(N23="SEMESTRAL",J23="MENSUAL"),N17/6+N50,IF(AND(N23="TRIMESTRAL",J23="MENSUAL"),N17/3+N50,IF(AND(N23="MENSUAL",J23="MENSUAL"),N17,"")))) -> 
C52: NIVEL DE SEGREGACIÓN *
C53: UNIDAD SEGREGADA (Ej. Facultad, Programa Académico, Área) | G53: RESULTADO | K53: ANÁLISIS DE DATOS SEGREGADO
C54: Creador de oportunidades | G54: 10356 | K54: El número de estudiantes matriculados en el IIPA 2024 es de 12.115 estudiantes de pregrado y posgrado. Conforme a los resultados obtenidos en la medición del indicador, se observa que el 85,5% del total de la población estudiantil participó en las experiencias y encuentros de bienestar universitario durante el segundo semestre del año 2024. Por otro lado, con respecto al total de participantes en las actividades de Bienestar, se observa que el 84,6% corresponde a estudiantes de los diferentes programas académicos, en la sede, seccionales y extensiones de la Universidad de Cundinamarca.
C55: Gestor del conocimiento y el aprendizaje | G55: 505 | K55: En cuanto a los gestores del conocimiento y el aprendizaje, y basados en los datos suministrados por la Dirección de Talento Humano, para el IIPA 2024 se contrataron 983 docentes en las diferentes modalidades de contratación, lo cual nos permite observar que el 51,4% del total de gestores vinculados, fueron participes de las acciones implementadas desde el proceso de Bienestar. Frente al total de participantes en estrategias de Bienestar Institucional, los docentes representan el 4,1% de las personas que se vincularon en dichas experiencias.
C56: Administrativos | G56: 677 | K56: Para el IIPA 2024, 766 trabajadores estuvieron vinculados mediante las diferentes modalidades de contratación que maneja la Ucundinamarca. De estos 766, el 88,4% (677) participaron en los encuentros, festivales, talleres, campañas, jornadas de salud y demás actividades de Bienestar. En lo relacionado al total de participantes, este grupo poblacional representa el 5,5% del total de las personas.
C57: Graduados | G57: 710 | K57: Por último, se observa la participación de 710 graduados, correspondiente al 5,8% del total de participantes en el semestre, lo que permite evidenciar que se logró una excelente cobertura en cada uno de los grupos poblacionales, mediante la difusión y convocatoria de los diferentes encuentros, campañas, festivales y demás estrategias desarrolladas.

Sheet MBU-10 en definición (hidden)
B2: REGRESAR
E5: MACROPROCESO ESTRATÉGICO | M5: CÓDIGO: ESGr027
E6: PROCESO GESTIÓN SISTEMAS INTEGRADOS | M6: VERSIÓN: 7
E7: MATRIZ DE MEDICIÓN Y SEGUIMIENTO A LOS PROCESOS DE GESTIÓN | M7: VIGENCIA: 2020-03-31
M8: PÁGINA: 1 de 1
C10: FICHA DE INDICADOR
C12: MACROPROCESO | E12: Misional | I12: NOMBRE DEL INDICADOR | K12: Satisfacción de la Orientación Vocacional
C13: PROCESO GESTIÓN | E13: Bienestar Universitario
C14: RESPONSABLE DE MEDICIÓN | E14: Director de Bienestar Universitario
C16: 1. COMPORTAMIENTO DE INDICADOR
C17: CLASIFICACIÓN DE LA MEDICIÓN | E17: 1 | H17: TIPO DE INDICADOR | J17: Eficacia | L17: META ANUAL | N17: 0.7
C18: FORMULA | E18: NUMERADOR | G18: # de encuestas con resultado de efectividad en Bueno y Excelente | L18: UNIDAD DE MEDIDA | N18: Porcentual
E19: DENOMINADOR | G19: Total de encuestas realizadas*100
C20: TENDENCIA | E20: Positiva | H20: NIVEL DE SEGREGACIÓN * | J20: Otros | L20: ESCALA
L21: Deficiente | M21: Aceptable | N21: Bueno | O21: Excelente
L22: 0% - 30,9% | M22: 31% - 49,9% | N22: 50% - 69,9% | O22: 70% - 100%
C23: ORIGEN DE DATOS NUMERADOR | E23: Base de datos encuesta Forms - Ruta de Orientación Vocacional | H23: FRECUENCIA DE LA MEDICIÓN | J23: SEMESTRAL | L23: FRECUENCIA DE RESULTADO | N23: SEMESTRAL
C24: ORIGEN DE DATOS DENOMINADOR | E24: Base de datos encuesta Forms - Ruta de Orientación Vocacional
C26: RESULTADOS
J27: ANÁLISIS DE DATOS
J34: ACCIÓN FORMULADA
J41: RESPONSABLE
J42: =E14 -> Director de Bienestar Universitario
C45: PERIODO DE EVALUACIÓN
C46: MES | D46: JUNIO | E46: DICIEMBRE | F46: =IF(J23="MENSUAL","MARZO",IF(J23="TRIMESTRAL","SEPTIEMBRE","")) ->  | G46: =IF(J23="MENSUAL","ABRIL",IF(J23="TRIMESTRAL","DICIEMBRE","")) ->  | H46: =IF(J23="MENSUAL","MAYO","") ->  | I46: =IF(J23="MENSUAL","JUNIO","") ->  | J46: =IF(J23="MENSUAL","JULIO","") ->  | K46: =IF(J23="MENSUAL","AGOSTO","") ->  | L46: =IF(J23="MENSUAL","SEPTIEMBRE","") ->  | M46: =IF(J23="MENSUAL","OCTUBRE","") ->  | N46: =IF(J23="MENSUAL","NOVIEMBRE","") ->  | O46: =IF(J23="MENSUAL","DICIEMBRE","") -> 
C47: =G18 -> # de encuestas con resultado de efectividad en Bueno y Excelente
C48: =G19 -> Total de encuestas realizadas*100
C49: VALOR | D49: =IFERROR(IF($E$17=1,D47/D48,IF($E$17=2,D47,"")),"") ->  | E49: =IFERROR(IF($E$17=1,E47/E48,IF($E$17=2,E47,"")),"") -> 
C50: META PONDERADA | D50: =IF(AND(N23="ANUAL",J23="MENSUAL"),N17/12,IF(AND(N23="ANUAL",J23="TRIMESTRAL"),N17/4,IF(AND(N23="ANUAL",J23="SEMESTRAL"),N17/2,IF(AND(N23="ANUAL",J23="ANUAL"),N17,IF(AND(N23="SEMESTRAL",J23="MENSUAL"),N17/6,IF(AND(N23="SEMESTRAL",J23="TRIMESTRAL"),N17/2,IF(AND(N23="SEMESTRAL",J23="SEMESTRAL"),N17,IF(AND(N23="SEMESTRAL",J23="ANUAL"),"REVISAR FRECUENCIAS",IF(AND(N23="TRIMESTRAL",J23="MENSUAL"),N17/3,IF(AND(N23="TRIMESTRAL",J23="TRIMESTRAL"),N17,IF(AND(N23="TRIMESTRAL",J23="SEMESTRAL"),"REVISAR FRECUENCIAS",IF(AND(N23="TRIMESTRAL",J23="ANUAL"),"REVISAR FRECUENCIAS",IF(AND(N23="MENSUAL",J23="MENSUAL"),N17,IF(AND(N23="MENSUAL",J23="TRIMESTRAL"),"REVISAR FRECUENCIAS",IF(AND(N23="MENSUAL",J23="SEMESTRAL"),"REVISAR FRECUENCIAS",IF(AND(N23="MENSUAL",J23="ANUAL"),"REVISAR FRECUENCIAS","")))))))))))))))) -> 0.7 | E50: =IF(AND(N23="ANUAL",J23="MENSUAL"),N17/12+D50,IF(AND(N23="ANUAL",J23="TRIMESTRAL"),N17/4+D50,IF(AND(N23="ANUAL",J23="SEMESTRAL"),N17/2+D50,IF(AND(N23="SEMESTRAL",J23="MENSUAL"),N17/6+D50,IF(AND(N23="SEMESTRAL",J23="TRIMESTRAL"),N17/2+D50,IF(AND(N23="SEMESTRAL",J23="SEMESTRAL"),N17,IF(AND(N23="TRIMESTRAL",J23="MENSUAL"),N17/3+D50,IF(AND(N23="TRIMESTRAL",J23="TRIMESTRAL"),N17,IF(AND(N23="MENSUAL",J23="MENSUAL"),N17,""))))))))) -> 0.7 | F50: =IF(AND(N23="ANUAL",J23="MENSUAL"),N17/12+E50,IF(AND(N23="ANUAL",J23="TRIMESTRAL"),N17/4+E50,IF(AND(N23="SEMESTRAL",J23="MENSUAL"),N17/6+E50,IF(AND(N23="SEMESTRAL",J23="TRIMESTRAL"),N17/2,IF(AND(N23="TRIMESTRAL",J23="MENSUAL"),N17/3+E50,IF(AND(N23="TRIMESTRAL",J23="TRIMESTRAL"),N17,IF(AND(N23="MENSUAL",J23="MENSUAL"),N17,""))))))) ->  | G50: =IF(AND(N23="ANUAL",J23="MENSUAL"),N17/12+F50,IF(AND(N23="ANUAL",J23="TRIMESTRAL"),N17/4+F50,IF(AND(N23="SEMESTRAL",J23="MENSUAL"),N17/6+F50,IF(AND(N23="SEMESTRAL",J23="TRIMESTRAL"),N17/2+F50,IF(AND(N23="TRIMESTRAL",J23="MENSUAL"),N17/3,IF(AND(N23="TRIMESTRAL",J23="TRIMESTRAL"),N17,IF(AND(N23="MENSUAL",J23="MENSUAL"),N17,""))))))) ->  | H50: =IF(AND($N$23="ANUAL",$J$23="MENSUAL"),$N$17/12+G50,IF(AND(N23="SEMESTRAL",J23="MENSUAL"),N17/6+G50,IF(AND(N23="TRIMESTRAL",J23="MENSUAL"),N17/3+G50,IF(AND(N23="MENSUAL",J23="MENSUAL"),N17,"")))) ->  | I50: =IF(AND($N$23="ANUAL",$J$23="MENSUAL"),$N$17/12+H50,IF(AND(N23="SEMESTRAL",J23="MENSUAL"),N17/6+H50,IF(AND(N23="TRIMESTRAL",J23="MENSUAL"),N17/3+H50,IF(AND(N23="MENSUAL",J23="MENSUAL"),N17,"")))) ->  | J50: =IF(AND($N$23="ANUAL",$J$23="MENSUAL"),$N$17/12+I50,IF(AND(N23="SEMESTRAL",J23="MENSUAL"),N17/6,IF(AND(N23="TRIMESTRAL",J23="MENSUAL"),N17/3,IF(AND(N23="MENSUAL",J23="MENSUAL"),N17,"")))) ->  | K50: =IF(AND($N$23="ANUAL",$J$23="MENSUAL"),$N$17/12+J50,IF(AND(N23="SEMESTRAL",J23="MENSUAL"),N17/6+J50,IF(AND(N23="TRIMESTRAL",J23="MENSUAL"),N17/3+J50,IF(AND(N23="MENSUAL",J23="MENSUAL"),N17,"")))) ->  | L50: =IF(AND($N$23="ANUAL",$J$23="MENSUAL"),$N$17/12+K50,IF(AND(N23="SEMESTRAL",J23="MENSUAL"),N17/6+K50,IF(AND(N23="TRIMESTRAL",J23="MENSUAL"),N17/3+K50,IF(AND(N23="MENSUAL",J23="MENSUAL"),N17,"")))) ->  | M50: =IF(AND($N$23="ANUAL",$J$23="MENSUAL"),$N$17/12+L50,IF(AND(N23="SEMESTRAL",J23="MENSUAL"),N17/6+L50,IF(AND(N23="TRIMESTRAL",J23="MENSUAL"),N17/3,IF(AND(N23="MENSUAL",J23="MENSUAL"),N17,"")))) ->  | N50: =IF(AND($N$23="ANUAL",$J$23="MENSUAL"),$N$17/12+M50,IF(AND(N23="SEMESTRAL",J23="MENSUAL"),N17/6+M50,IF(AND(N23="TRIMESTRAL",J23="MENSUAL"),N17/3+M50,IF(AND(N23="MENSUAL",J23="MENSUAL"),N17,"")))) ->  | O50: =IF(AND($N$23="ANUAL",$J$23="MENSUAL"),$N$17/12+N50,IF(AND(N23="SEMESTRAL",J23="MENSUAL"),N17/6+N50,IF(AND(N23="TRIMESTRAL",J23="MENSUAL"),N17/3+N50,IF(AND(N23="MENSUAL",J23="MENSUAL"),N17,"")))) -> 
C52: NIVEL DE SEGREGACIÓN *
C53: UNIDAD SEGREGADA (Ej. Facultad, Programa Académico, Área) | G53: RESULTADO | K53: ANÁLISIS DE DATOS SEGREGADO
C54: Taller de orientación vocacional para los estudiantes
C55: Feria de Servicios
C56: Taller de padres o redes de apoyo
G66: Estratégico | J66: Eficacia
G67: Misional | J67: Eficiencia
G68: Apoyo | J68: Acreditación
G69: Seguimiento, Medición, Análisis y Evaluación | J69: Positiva
G70: Direccionamiento Estratégico | J70: Negativa
G71: Planeación Institucional | J71: Por Unidad Regional
G72: Proyectos Especiales y Relaciones Interinstitucionales | J72: Por Facultad
G73: Sistemas Integrados | J73: Por Programa Académico
G74: Autoevaluación y Acreditación | J74: Por área
G75: Comunicaciones | J75: Por Laboratorio
G76: Formación y Aprendizaje | J76: Otros
G77: Ciencia, Tecnología e Innovación | J77: No Aplica
G78: Interacción Social Universitaria
G79: Bienestar Universitario
G80: Admisiones y Registro
G81: Graduados
G82: Dialogando con el Mundo
G83: Talento Humano
G84: Jurídica
G85: Financiera
G86: Sistemas y Tecnología
G87: Bienes y Servicios
G88: Documental
G89: Apoyo Académico
G90: Control Interno
G91: Control Disciplinario
G92: Servicio de Atención al Ciudadano

Sheet ACTUALIZACIONES
C2: MACROPROCESO ESTRATÉGICO | E2: CÓDIGO: ESGr027
C3: PROCESO GESTIÓN SISTEMAS INTEGRADOS - CALIDAD | E3: VERSIÓN: 8
C4: MATRIZ DE MEDICIÓN Y SEGUIMIENTO A LOS PROCESOS DE GESTIÓN | E4: VIGENCIA: 2023-07-28
E5: PÁGINA: 5 de 5
B7: CONTROL DE ACTUALIZACIONES
B8: FECHA | C8: DESCRIPCIÓN DE LA ACTUALIZACIÓN | D8: RESPONSABLE | E8: CARGO
B9: 2020-03-31 | C9: MBU Se agrega un nuevo indicador para Acreditación "Participación de la Comunidad Universitaria" | D9: María Margarita Moya González | E9: Directora de Bienestar Universitario
B10: 2022-03-11 | C10: Se reestructura el indicador MBU-9 toda vez que la forma en que se contemplaba la medición estaba generando duplicidad con el reporte de las metas del plan de desarrollo de conformidad con la estrategia No 30 y No 31 del frente 4. | D10: María Margarita Moya González | E10: Directora de Bienestar Universitario
B11: 2023-05-08 | C11: MBU-7 Aumento de la participación en los grupos culturales y deportivos: Se mantiene la meta en un 6% teniendo en cuenta que la medición no es un crecimiento estático sobre línea base inicial, sino es un incremento al resultado del periodo inmediatamente anterior. Se ajusta el valor de "Origen de datos del numerador y denominador", de la siguiente manera: "Formato MBUr061 (Reporte de actividades de bienestar)" a Reporte de asistencia en las actividades de Bienestar generado por la plataforma institucional. Para la medición del segundo semestre se revisará en agosto y estará sujeto al comportamiento del primero y se determinará si es pertinente un ajuste a la meta. MBU-8 Acompañamiento interdisciplinar (Participantes ASCUN deportivos): Se reactiva el indicador; adicional, se ajusta la medición y el nombre de la siguiente manera: Mejoramiento de la calidad de vida a Acompañamiento interdisciplinar (Participantes ASCUN deportivos). Se ajusta el valor de "Origen de datos del numerador y denominador", el cual se alimenta de los resultados obtenidos del formato MBUr108 y no del MBUr110 y MBUr109. La fórmula se ajusta de la siguiente manera: (# de personas que recibieron acompañamiento / # total de personas que participan en ASCUN deportivo) * 100 MBU-9 Participación de la Comunidad Universitaria: Se mantiene la meta en un 50% debido a que el comportamiento de incremento en el periodo anterior si dio por el regreso a la presencialidad. Para el segundo semestre se evaluará si es pertinente incrementar el porcentaje de la meta, esto con base a los resultados arrojados en el primer semestre. Se ajusta el valor de "Origen de datos del numerador y denominador", de la siguiente manera: "Formato MBUr061 (Reporte de actividades de bienestar)" a Reporte de asistencia en las actividades de Bienestar generado por la plataforma institucional. | D11: María Margarita Moya González | E11: Directora de Bienestar Universitario
B13: 2023-08-01 | C13: Se incorpora Planificación de Actividades para cada Objetivo Específico | D13: Diana Milena Rey Gutiérrez | E13: Directora de Bienestar Universitario F.A
B14: 2024-06-12 | C14: MBU-7 Aumento de la participación en los grupos culturales y deportivos: Se mantiene la meta en un 6% teniendo en cuenta que la medición no es un crecimiento estático sobre línea base inicial, sino es un incremento al resultado del periodo inmediatamente anterior. Para la medición del segundo semestre se revisará en agosto y estará sujeto al comportamiento del primero y se determinará si es pertinente un ajuste a la meta. MBU-8 Acompañamiento interdisciplinar (Participantes ASCUN deportivos): Se mantiene la meta en un 70%. MBU-9 Participación de la Comunidad Universitaria: Se incrementa la meta a un 70%. Adicional, se ajusta en la hoja "MATRIZ DE INDICADORES" las vigencias a los objetivos específicos y al plan de actividades. | D14: María Margarita Moya González | E14: Directora de Bienestar Universitario
B26: Diagonal 18 No. 20-29 Fusagasugá – Cundinamarca Teléfono (601) 8281483 Línea Gratuita 018000180414 www.ucundinamarca.edu.co E-mail: info@ucundinamarca.edu.co NIT: 890.680.062-2
B29: Documento controlado por el Sistema de Gestión de la Calidad Asegúrese que corresponde a la última versión consultando el Portal Institucional

Sheet ITEM (hidden)
A1: MENSUAL | C1: NÚMERO
A2: TRIMESTRAL | C2: PORCENTAJE
A3: SEMESTRAL
A4: ANUAL
